[Event "Titled Tuesday Blitz March 22 Late 2022"]
[White "Ardila, Oscar Humberto"]
[Black "Petrova, Irina"]
[WhiteFideId "4404742"]
[BlackFideId "14124122"]
[WhiteElo "1966"]
[BlackElo "1993"]
[Result "1/2-1/2"]
[Round "08"]
[TimeControl "180+1"]
[Date "2022.03.22"]
[WhiteClock "0:00:16"]
[BlackClock "0:00:12"]

1. d4 {[%clk 0:02:59]}  d6 {[%clk 0:03:00]} 2. c4 {[%clk 0:02:59]}  e5 {[%clk 0:03:00]} 3. d5 {[%clk 0:02:59]}  f5 {[%clk 0:03:00]} 4. Nc3 {[%clk 0:02:59]}  Nf6 {[%clk 0:03:00]} 5. g3 {[%clk 0:02:59]}  g6 {[%clk 0:03:00]} 6. Bg2 {[%clk 0:03:00]}  Bg7 {[%clk 0:03:00]} 7. e3 {[%clk 0:03:00]}  O-O {[%clk 0:03:00]} 8. Nge2 {[%clk 0:03:00]}  a5 {[%clk 0:02:55]} 9. O-O {[%clk 0:03:00]}  Na6 {[%clk 0:02:55]} 10. b3 {[%clk 0:02:59]}  Nc5 {[%clk 0:02:55]} 11. Bb2 {[%clk 0:02:59]}  Bd7 {[%clk 0:02:49]} 12. a3 {[%clk 0:02:59]}  Qe8 {[%clk 0:02:40]} 13. b4 {[%clk 0:02:57]}  axb4 {[%clk 0:02:40]} 14. axb4 {[%clk 0:02:57]}  Na4 {[%clk 0:02:39]} 15. Nxa4 {[%clk 0:02:53]}  Bxa4 {[%clk 0:02:39]} 16. Qc1 {[%clk 0:02:45]}  Bd7 {[%clk 0:02:31]} 17. Nc3 {[%clk 0:02:43]}  e4 {[%clk 0:02:26]} 18. Ne2 {[%clk 0:02:40]}  g5 {[%clk 0:02:16]} 19. Bc3 {[%clk 0:02:32]}  Rxa1 {[%clk 0:02:04]} 20. Qxa1 {[%clk 0:02:32]}  Qh5 {[%clk 0:02:04]} 21. Bxf6 {[%clk 0:02:24]}  Bxf6 {[%clk 0:02:04]} 22. Qa2 {[%clk 0:02:21]}  Be5 {[%clk 0:01:56]} 23. Nd4 {[%clk 0:02:14]}  f4 {[%clk 0:01:46]} 24. Bxe4 {[%clk 0:02:13]}  fxe3 {[%clk 0:01:45]} 25. fxe3 {[%clk 0:02:10]}  Rxf1+ {[%clk 0:01:45]} 26. Kxf1 {[%clk 0:02:10]}  Bh3+ {[%clk 0:01:26]} 27. Ke1 {[%clk 0:01:57]}  Bxd4 {[%clk 0:01:09]} 28. exd4 {[%clk 0:01:51]}  Qe8 {[%clk 0:01:07]} 29. Qe2 {[%clk 0:01:31]}  Qa4 {[%clk 0:01:01]} 30. Qd2 {[%clk 0:01:15]}  Qa1+ {[%clk 0:00:54]} 31. Kf2 {[%clk 0:00:51]}  Qf1+ {[%clk 0:00:52]} 32. Ke3 {[%clk 0:00:51]}  Qxc4 {[%clk 0:00:47]} 33. Bf3 {[%clk 0:00:46]}  Qb3+ {[%clk 0:00:42]} 34. Kf2 {[%clk 0:00:45]}  Qb1 {[%clk 0:00:27]} 35. Qxg5+ {[%clk 0:00:44]}  Qg6 {[%clk 0:00:21]} 36. Qd8+ {[%clk 0:00:42]}  Kg7 {[%clk 0:00:20]} 37. Qxc7+ {[%clk 0:00:40]}  Kh6 {[%clk 0:00:20]} 38. Qc1+ {[%clk 0:00:38]}  Kg7 {[%clk 0:00:20]} 39. Qc7+ {[%clk 0:00:35]}  Kh6 {[%clk 0:00:20]} 40. Qc1+ {[%clk 0:00:30]}  Kg7 {[%clk 0:00:19]} 41. Qf4 {[%clk 0:00:29]}  Qc2+ {[%clk 0:00:18]} 42. Be2 {[%clk 0:00:30]}  Qg6 {[%clk 0:00:15]} 43. b5 {[%clk 0:00:24]}  Qf6 {[%clk 0:00:14]} 44. b6 {[%clk 0:00:23]}  Qxf4+ {[%clk 0:00:13]} 45. gxf4 {[%clk 0:00:23]}  Kf6 {[%clk 0:00:13]} 46. Bf3 {[%clk 0:00:23]}  Bc8 {[%clk 0:00:13]} 47. Ke3 {[%clk 0:00:21]}  Bd7 {[%clk 0:00:13]} 48. Be4 {[%clk 0:00:21]}  h6 {[%clk 0:00:12]} 49. h4 {[%clk 0:00:21]}  Bc8 {[%clk 0:00:12]} 50. Kd3 {[%clk 0:00:20]}  Bd7 {[%clk 0:00:12]} 51. Ke3 {[%clk 0:00:20]}  Bc8 {[%clk 0:00:12]} 52. Bf3 {[%clk 0:00:18]}  Bd7 {[%clk 0:00:12]} 53. Be4 {[%clk 0:00:16]} 1/2-1/2


[Site "https://www.chess.com"]

[Event "Titled Tuesday Blitz March 22 Late 2022"]
[White "Baches Garcia, Guillermo"]
[Black "Goryachkina, Aleksandra"]
[WhiteFideId "2209764"]
[BlackFideId "4147103"]
[WhiteElo "2488"]
[BlackElo "2426"]
[Result "1/2-1/2"]
[Round "08"]
[TimeControl "180+1"]
[Date "2022.03.22"]
[WhiteClock "0:00:21"]
[BlackClock "0:00:37"]

1. e4 {[%clk 0:03:00]}  e6 {[%clk 0:02:59]} 2. d4 {[%clk 0:03:00]}  d5 {[%clk 0:03:00]} 3. exd5 {[%clk 0:03:00]}  exd5 {[%clk 0:03:00]} 4. Nf3 {[%clk 0:03:00]}  Nc6 {[%clk 0:02:59]} 5. Bb5 {[%clk 0:03:00]}  Bd6 {[%clk 0:02:56]} 6. c4 {[%clk 0:03:00]}  dxc4 {[%clk 0:02:56]} 7. d5 {[%clk 0:03:01]}  a6 {[%clk 0:02:56]} 8. Ba4 {[%clk 0:03:01]}  b5 {[%clk 0:02:56]} 9. dxc6 {[%clk 0:03:01]}  bxa4 {[%clk 0:02:56]} 10. Qxa4 {[%clk 0:03:02]}  Ne7 {[%clk 0:02:52]} 11. O-O {[%clk 0:03:02]}  O-O {[%clk 0:02:51]} 12. Nbd2 {[%clk 0:03:02]}  Rb8 {[%clk 0:02:47]} 13. a3 {[%clk 0:03:01]}  c3 {[%clk 0:02:41]} 14. bxc3 {[%clk 0:02:50]}  Be6 {[%clk 0:02:41]} 15. Nc4 {[%clk 0:02:45]}  Bd5 {[%clk 0:02:38]} 16. Nxd6 {[%clk 0:02:39]}  Qxd6 {[%clk 0:02:21]} 17. Bf4 {[%clk 0:02:35]}  Qg6 {[%clk 0:02:16]} 18. Bg3 {[%clk 0:02:22]}  Bxc6 {[%clk 0:01:56]} 19. Qxa6 {[%clk 0:02:01]}  Bxf3 {[%clk 0:01:35]} 20. Qxg6 {[%clk 0:01:54]}  fxg6 {[%clk 0:01:36]} 21. gxf3 {[%clk 0:01:55]}  Rxf3 {[%clk 0:01:36]} 22. Bxc7 {[%clk 0:01:46]}  Rc8 {[%clk 0:01:36]} 23. Bg3 {[%clk 0:01:43]}  Rfxc3 {[%clk 0:01:28]} 24. a4 {[%clk 0:01:41]}  Nf5 {[%clk 0:01:19]} 25. a5 {[%clk 0:01:27]}  Ra8 {[%clk 0:01:14]} 26. Ra4 {[%clk 0:01:13]}  Ra6 {[%clk 0:01:06]} 27. Rfa1 {[%clk 0:01:04]}  h5 {[%clk 0:01:04]} 28. R1a3 {[%clk 0:00:48]}  Rc5 {[%clk 0:01:01]} 29. Kg2 {[%clk 0:00:44]}  Kh7 {[%clk 0:01:00]} 30. Ra2 {[%clk 0:00:36]}  g5 {[%clk 0:01:00]} 31. h3 {[%clk 0:00:24]}  Kg6 {[%clk 0:00:51]} 32. R4a3 {[%clk 0:00:22]}  Rd5 {[%clk 0:00:44]} 33. Ra4 {[%clk 0:00:22]}  Rb5 {[%clk 0:00:37]} 34. R4a3 {[%clk 0:00:21]} 1/2-1/2


[Site "https://www.chess.com"]

[Event "Titled Tuesday Blitz March 22 Late 2022"]
[White "Bachmann, Axel"]
[Black "Sliwicki, Damian"]
[WhiteFideId "3700488"]
[BlackFideId "1127128"]
[WhiteElo "2587"]
[BlackElo "2067"]
[Result "0-1"]
[Round "08"]
[TimeControl "180+1"]
[Date "2022.03.22"]
[WhiteClock "0:00:03"]
[BlackClock "0:00:03"]

1. d4 {[%clk 0:03:00]}  Nf6 {[%clk 0:02:36]} 2. g3 {[%clk 0:03:00]}  c5 {[%clk 0:02:17]} 3. d5 {[%clk 0:02:59]}  g6 {[%clk 0:02:13]} 4. c4 {[%clk 0:02:59]}  Bg7 {[%clk 0:02:13]} 5. Nc3 {[%clk 0:02:59]}  O-O {[%clk 0:02:12]} 6. Nf3 {[%clk 0:03:00]}  a6 {[%clk 0:02:00]} 7. Bg2 {[%clk 0:02:56]}  b5 {[%clk 0:02:00]} 8. cxb5 {[%clk 0:02:56]}  axb5 {[%clk 0:02:01]} 9. Nxb5 {[%clk 0:02:56]}  Qa5+ {[%clk 0:01:52]} 10. Nc3 {[%clk 0:02:49]}  Ne4 {[%clk 0:01:25]} 11. O-O {[%clk 0:02:42]}  Nxc3 {[%clk 0:01:20]} 12. bxc3 {[%clk 0:02:40]}  Bxc3 {[%clk 0:01:15]} 13. Bh6 {[%clk 0:02:28]}  Re8 {[%clk 0:01:05]} 14. d6 {[%clk 0:02:08]}  exd6 {[%clk 0:00:45]} 15. Ng5 {[%clk 0:02:04]}  Nc6 {[%clk 0:00:32]} 16. Qb3 {[%clk 0:01:36]}  Re6 {[%clk 0:00:20]} 17. Nxe6 {[%clk 0:01:01]}  fxe6 {[%clk 0:00:21]} 18. Rad1 {[%clk 0:00:47]}  Rb8 {[%clk 0:00:20]} 19. Qc2 {[%clk 0:00:36]}  Rb2 {[%clk 0:00:19]} 20. Qe4 {[%clk 0:00:29]}  Ne5 {[%clk 0:00:17]} 21. Rxd6 {[%clk 0:00:19]}  Nf7 {[%clk 0:00:15]} 22. Qf4 {[%clk 0:00:10]}  Be5 {[%clk 0:00:16]} 23. Qh4 {[%clk 0:00:04]}  Bxd6 {[%clk 0:00:12]} 24. Qf6 {[%clk 0:00:04]}  Be5 {[%clk 0:00:12]} 25. Qe7 {[%clk 0:00:02]}  Nxh6 {[%clk 0:00:08]} 26. Qe8+ {[%clk 0:00:02]}  Kg7 {[%clk 0:00:09]} 27. Qxc8 {[%clk 0:00:03]}  Nf7 {[%clk 0:00:08]} 28. Qxd7 {[%clk 0:00:03]}  Qb5 {[%clk 0:00:07]} 29. Qxe6 {[%clk 0:00:03]}  Qxe2 {[%clk 0:00:08]} 30. Bd5 {[%clk 0:00:02]}  Ng5 {[%clk 0:00:07]} 31. Qe7+ {[%clk 0:00:02]}  Kh6 {[%clk 0:00:07]} 32. Qf8+ {[%clk 0:00:03]}  Bg7 {[%clk 0:00:07]} 33. Qf4 {[%clk 0:00:03]}  Be5 {[%clk 0:00:03]} 34. Qf8+ {[%clk 0:00:03]}  Bg7 {[%clk 0:00:03]} 0-1


[Site "https://www.chess.com"]

[Event "Titled Tuesday Blitz March 22 Late 2022"]
[White "Broca Jimenez, Fernando"]
[Black "Vine, Elzbieta"]
[WhiteFideId "5104742"]
[BlackFideId "1119320"]
[WhiteElo "2062"]
[BlackElo "1829"]
[Result "1-0"]
[Round "08"]
[TimeControl "180+1"]
[Date "2022.03.22"]
[WhiteClock "0:00:22"]
[BlackClock "0:00:53"]

1. d4 {[%clk 0:03:00]}  d5 {[%clk 0:02:58]} 2. c4 {[%clk 0:02:58]}  c6 {[%clk 0:02:56]} 3. Nc3 {[%clk 0:02:58]}  Nf6 {[%clk 0:02:55]} 4. g3 {[%clk 0:02:58]}  Bf5 {[%clk 0:02:50]} 5. Bg2 {[%clk 0:02:58]}  Qd7 {[%clk 0:02:45]} 6. Bf4 {[%clk 0:02:46]}  h6 {[%clk 0:02:36]} 7. Qd2 {[%clk 0:02:41]}  Na6 {[%clk 0:02:29]} 8. Nf3 {[%clk 0:02:29]}  Bh3 {[%clk 0:02:22]} 9. Ne5 {[%clk 0:02:28]}  Qe6 {[%clk 0:02:16]} 10. cxd5 {[%clk 0:02:09]}  cxd5 {[%clk 0:02:13]} 11. Bf3 {[%clk 0:02:03]}  g5 {[%clk 0:02:05]} 12. Bxg5 {[%clk 0:01:31]}  hxg5 {[%clk 0:02:04]} 13. Qxg5 {[%clk 0:01:32]}  Bh6 {[%clk 0:01:56]} 14. Qh4 {[%clk 0:01:22]}  Bd2+ {[%clk 0:01:54]} 15. Kxd2 {[%clk 0:01:21]}  Rxh4 {[%clk 0:01:53]} 16. gxh4 {[%clk 0:01:22]}  Bf5 {[%clk 0:01:44]} 17. Rhg1 {[%clk 0:01:18]}  O-O-O {[%clk 0:01:36]} 18. Rac1 {[%clk 0:01:17]}  Kb8 {[%clk 0:01:35]} 19. Rg7 {[%clk 0:01:11]}  Ne4+ {[%clk 0:01:34]} 20. Bxe4 {[%clk 0:01:01]}  dxe4 {[%clk 0:01:25]} 21. Ke1 {[%clk 0:00:42]}  Nb4 {[%clk 0:01:19]} 22. a3 {[%clk 0:00:39]}  Nd5 {[%clk 0:01:16]} 23. Rxf7 {[%clk 0:00:34]}  Nxc3 {[%clk 0:01:14]} 24. bxc3 {[%clk 0:00:34]}  e3 {[%clk 0:01:07]} 25. fxe3 {[%clk 0:00:31]}  Be4 {[%clk 0:01:06]} 26. Rf2 {[%clk 0:00:26]}  Qh3 {[%clk 0:01:04]} 27. Kd2 {[%clk 0:00:23]}  Qxh4 {[%clk 0:01:02]} 28. Rf4 {[%clk 0:00:23]}  Bd5 {[%clk 0:00:53]} 29. Rxh4 {[%clk 0:00:22]} 1-0


[Site "https://www.chess.com"]

[Event "Titled Tuesday Blitz March 22 Late 2022"]
[White "Cavanah, Troy"]
[Black "Rudykh, Stepan"]
[WhiteFideId "30949670"]
[BlackFideId "4180321"]
[WhiteElo "1878"]
[BlackElo "2151"]
[Result "0-1"]
[Round "08"]
[TimeControl "180+1"]
[Date "2022.03.22"]
[WhiteClock "0:01:55"]
[BlackClock "0:00:37"]

1. e4 {[%clk 0:03:00]}  e6 {[%clk 0:03:00]} 2. d4 {[%clk 0:03:00]}  d5 {[%clk 0:03:01]} 3. Nc3 {[%clk 0:03:00]}  Bb4 {[%clk 0:03:00]} 4. exd5 {[%clk 0:02:59]}  exd5 {[%clk 0:03:00]} 5. Bd3 {[%clk 0:02:59]}  c6 {[%clk 0:03:01]} 6. Nf3 {[%clk 0:02:59]}  Nf6 {[%clk 0:02:58]} 7. O-O {[%clk 0:02:59]}  O-O {[%clk 0:02:58]} 8. a3 {[%clk 0:02:57]}  Bd6 {[%clk 0:02:57]} 9. Ne2 {[%clk 0:02:54]}  Bg4 {[%clk 0:02:55]} 10. Ng3 {[%clk 0:02:54]}  Qc7 {[%clk 0:02:51]} 11. Re1 {[%clk 0:02:40]}  Nbd7 {[%clk 0:02:38]} 12. c3 {[%clk 0:02:25]}  Rfe8 {[%clk 0:02:35]} 13. Rxe8+ {[%clk 0:02:19]}  Rxe8 {[%clk 0:02:36]} 14. h3 {[%clk 0:02:19]}  Be6 {[%clk 0:02:28]} 15. Nf5 {[%clk 0:02:18]}  Bf8 {[%clk 0:02:14]} 16. Bg5 {[%clk 0:02:16]}  Ne4 {[%clk 0:02:12]} 17. Bxe4 {[%clk 0:02:16]}  dxe4 {[%clk 0:02:12]} 18. N3h4 {[%clk 0:02:15]}  h6 {[%clk 0:02:09]} 19. Bd2 {[%clk 0:02:04]}  g5 {[%clk 0:02:03]} 20. Qg4 {[%clk 0:02:04]}  Nf6 {[%clk 0:02:02]} 21. Qg3 {[%clk 0:02:03]}  Qxg3 {[%clk 0:02:01]} 22. fxg3 {[%clk 0:02:01]}  gxh4 {[%clk 0:02:01]} 23. Nxh4 {[%clk 0:02:02]}  Kh7 {[%clk 0:01:43]} 24. Rf1 {[%clk 0:02:00]}  Nd5 {[%clk 0:01:29]} 25. c4 {[%clk 0:01:59]}  Nb6 {[%clk 0:01:28]} 26. b3 {[%clk 0:01:59]}  Bg7 {[%clk 0:01:17]} 27. Be3 {[%clk 0:01:58]}  Rd8 {[%clk 0:01:13]} 28. Nf5 {[%clk 0:01:55]}  Bxf5 {[%clk 0:01:02]} 29. Rxf5 {[%clk 0:01:56]}  Kg6 {[%clk 0:01:01]} 30. Rf4 {[%clk 0:01:55]}  Bxd4 {[%clk 0:01:00]} 31. Rg4+ {[%clk 0:01:54]}  Kf5 {[%clk 0:00:55]} 32. Rf4+ {[%clk 0:01:54]}  Ke5 {[%clk 0:00:56]} 33. Rxf7 {[%clk 0:01:52]}  Bxe3+ {[%clk 0:00:55]} 34. Kh2 {[%clk 0:01:51]}  Rd1 {[%clk 0:00:52]} 35. g4 {[%clk 0:01:50]}  Bf4+ {[%clk 0:00:45]} 36. g3 {[%clk 0:01:50]}  Rd2+ {[%clk 0:00:45]} 37. Kg1 {[%clk 0:01:51]}  Bxg3 {[%clk 0:00:45]} 38. Re7+ {[%clk 0:01:51]}  Kd4 {[%clk 0:00:45]} 39. Rxb7 {[%clk 0:01:52]}  e3 {[%clk 0:00:45]} 40. Rf7 {[%clk 0:01:53]}  e2 {[%clk 0:00:44]} 41. Rd7+ {[%clk 0:01:54]}  Kc3 {[%clk 0:00:44]} 42. Rxd2 {[%clk 0:01:54]}  Kxd2 {[%clk 0:00:44]} 43. Kg2 {[%clk 0:01:55]}  e1=Q {[%clk 0:00:44]} 44. Kf3 {[%clk 0:01:55]}  Qe3+ {[%clk 0:00:41]} 45. Kg2 {[%clk 0:01:55]}  Qf2+ {[%clk 0:00:41]} 46. Kh1 {[%clk 0:01:55]}  Nd7 {[%clk 0:00:37]} 0-1


[Site "https://www.chess.com"]

[Event "Titled Tuesday Blitz March 22 Late 2022"]
[White "Daianu, Cristian-Clement"]
[Black "Tanenbaum, Zachary"]
[WhiteFideId "1208926"]
[BlackFideId "2060850"]
[WhiteElo "2159"]
[BlackElo "2168"]
[Result "1-0"]
[Round "08"]
[TimeControl "180+1"]
[Date "2022.03.22"]
[WhiteClock "0:01:44"]
[BlackClock "0:00:00"]

1. d4 {[%clk 0:03:00]}  d5 {[%clk 0:02:56]} 2. Bf4 {[%clk 0:02:56]}  Nf6 {[%clk 0:02:55]} 3. Nc3 {[%clk 0:02:56]}  a6 {[%clk 0:02:55]} 4. e3 {[%clk 0:02:53]}  Bf5 {[%clk 0:02:53]} 5. Bd3 {[%clk 0:02:52]}  Bg6 {[%clk 0:02:52]} 6. Nf3 {[%clk 0:02:49]}  e6 {[%clk 0:02:52]} 7. Qe2 {[%clk 0:02:43]}  Bb4 {[%clk 0:02:47]} 8. O-O {[%clk 0:02:38]}  Nbd7 {[%clk 0:02:35]} 9. h3 {[%clk 0:02:38]}  Bxc3 {[%clk 0:02:34]} 10. bxc3 {[%clk 0:02:38]}  Nb6 {[%clk 0:02:34]} 11. Ne5 {[%clk 0:02:33]}  O-O {[%clk 0:02:20]} 12. Bh2 {[%clk 0:02:33]}  Rc8 {[%clk 0:02:05]} 13. f4 {[%clk 0:02:32]}  Be4 {[%clk 0:02:02]} 14. Bg3 {[%clk 0:02:23]}  c5 {[%clk 0:02:00]} 15. Bh4 {[%clk 0:02:22]}  Qc7 {[%clk 0:01:42]} 16. Bxf6 {[%clk 0:02:19]}  gxf6 {[%clk 0:01:40]} 17. Bxe4 {[%clk 0:02:19]}  fxe5 {[%clk 0:01:33]} 18. Bxh7+ {[%clk 0:02:15]}  Kxh7 {[%clk 0:01:16]} 19. Qh5+ {[%clk 0:02:13]}  Kg7 {[%clk 0:01:15]} 20. Rf3 {[%clk 0:02:04]}  Rg8 {[%clk 0:01:04]} 21. fxe5 {[%clk 0:01:53]}  Kf8 {[%clk 0:00:05]} 22. Raf1 {[%clk 0:01:52]}  Rg7 {[%clk 0:00:02]} 23. Qh8+ {[%clk 0:01:51]}  Rg8 {[%clk 0:00:03]} 24. Rxf7+ {[%clk 0:01:51]}  Qxf7 {[%clk 0:00:03]} 25. Rxf7+ {[%clk 0:01:52]}  Kxf7 {[%clk 0:00:04]} 26. Qf6+ {[%clk 0:01:52]}  Ke8 {[%clk 0:00:05]} 27. Qxe6+ {[%clk 0:01:53]}  Kf8 {[%clk 0:00:05]} 28. Qxb6 {[%clk 0:01:51]}  Rg7 {[%clk 0:00:05]} 29. Qf6+ {[%clk 0:01:46]}  Ke8 {[%clk 0:00:03]} 30. Qxg7 {[%clk 0:01:46]}  Kd8 {[%clk 0:00:01]} 31. e6 {[%clk 0:01:44]}  Rc7 {[%clk 0:00:00]} 32. Qf8# {[%clk 0:01:44]} 1-0


[Site "https://www.chess.com"]

[Event "Titled Tuesday Blitz March 22 Late 2022"]
[White "Demchenko, Anton"]
[Black "Perera Alfonso, Rene Humberto"]
[WhiteFideId "4160258"]
[BlackFideId "3514722"]
[WhiteElo "2539"]
[BlackElo "2313"]
[Result "1-0"]
[Round "08"]
[TimeControl "180+1"]
[Date "2022.03.22"]
[WhiteClock "0:01:49"]
[BlackClock "0:01:38"]

1. e4 {[%clk 0:03:00]}  c5 {[%clk 0:02:59]} 2. Nf3 {[%clk 0:03:00]}  d6 {[%clk 0:03:00]} 3. d4 {[%clk 0:03:00]}  cxd4 {[%clk 0:03:01]} 4. Nxd4 {[%clk 0:03:00]}  Nf6 {[%clk 0:03:01]} 5. Nc3 {[%clk 0:03:01]}  g6 {[%clk 0:03:01]} 6. Be3 {[%clk 0:02:58]}  a6 {[%clk 0:03:01]} 7. f3 {[%clk 0:02:58]}  e5 {[%clk 0:03:01]} 8. Nb3 {[%clk 0:02:58]}  h5 {[%clk 0:03:01]} 9. Qd2 {[%clk 0:02:57]}  Be6 {[%clk 0:03:01]} 10. O-O-O {[%clk 0:02:58]}  Nbd7 {[%clk 0:03:01]} 11. Kb1 {[%clk 0:02:57]}  Rc8 {[%clk 0:03:01]} 12. Bg5 {[%clk 0:02:57]}  Qc7 {[%clk 0:03:00]} 13. g3 {[%clk 0:02:47]}  Be7 {[%clk 0:02:57]} 14. h3 {[%clk 0:02:46]}  b5 {[%clk 0:02:56]} 15. a3 {[%clk 0:02:45]}  Nb6 {[%clk 0:02:54]} 16. Bxf6 {[%clk 0:02:27]}  Bxf6 {[%clk 0:02:54]} 17. Bxb5+ {[%clk 0:02:28]}  axb5 {[%clk 0:02:45]} 18. Nxb5 {[%clk 0:02:28]}  Qb8 {[%clk 0:02:45]} 19. Nxd6+ {[%clk 0:02:28]}  Kf8 {[%clk 0:02:44]} 20. Nxc8 {[%clk 0:02:25]}  Nxc8 {[%clk 0:02:42]} 21. Nc5 {[%clk 0:02:23]}  Qb6 {[%clk 0:02:22]} 22. Qb4 {[%clk 0:02:23]}  Qxb4 {[%clk 0:02:19]} 23. axb4 {[%clk 0:02:19]}  Ke7 {[%clk 0:02:14]} 24. h4 {[%clk 0:02:07]}  Nd6 {[%clk 0:02:10]} 25. Rh2 {[%clk 0:01:58]}  Rb8 {[%clk 0:02:07]} 26. c3 {[%clk 0:01:56]}  Bc8 {[%clk 0:01:41]} 27. b3 {[%clk 0:01:53]}  Nb7 {[%clk 0:01:41]} 28. Na6 {[%clk 0:01:52]}  Ra8 {[%clk 0:01:41]} 29. Nc7 {[%clk 0:01:52]}  Ra7 {[%clk 0:01:38]} 30. Nd5+ {[%clk 0:01:52]}  Ke6 {[%clk 0:01:38]} 31. Nb6 {[%clk 0:01:49]} 1-0


[Site "https://www.chess.com"]

[Event "Titled Tuesday Blitz March 22 Late 2022"]
[White "Dilanyan, Grigor"]
[Black "Golubka, Petro"]
[WhiteFideId "13303570"]
[BlackFideId "14114224"]
[WhiteElo "2279"]
[BlackElo "2346"]
[Result "0-1"]
[Round "08"]
[TimeControl "180+1"]
[Date "2022.03.22"]
[WhiteClock "0:02:18"]
[BlackClock "0:02:14"]

1. e4 {[%clk 0:03:00]}  g6 {[%clk 0:02:45]} 2. d4 {[%clk 0:02:59]}  Bg7 {[%clk 0:02:46]} 3. Nc3 {[%clk 0:03:00]}  c6 {[%clk 0:02:46]} 4. Be3 {[%clk 0:03:01]}  b5 {[%clk 0:02:45]} 5. a4 {[%clk 0:03:00]}  b4 {[%clk 0:02:45]} 6. Nce2 {[%clk 0:03:00]}  d5 {[%clk 0:02:45]} 7. Ng3 {[%clk 0:03:01]}  dxe4 {[%clk 0:02:44]} 8. Nxe4 {[%clk 0:03:02]}  Nf6 {[%clk 0:02:44]} 9. Nxf6+ {[%clk 0:03:01]}  Bxf6 {[%clk 0:02:45]} 10. Nf3 {[%clk 0:03:02]}  O-O {[%clk 0:02:45]} 11. Be2 {[%clk 0:03:03]}  Bg4 {[%clk 0:02:45]} 12. O-O {[%clk 0:03:03]}  Nd7 {[%clk 0:02:46]} 13. h3 {[%clk 0:03:03]}  Be6 {[%clk 0:02:45]} 14. a5 {[%clk 0:03:00]}  Re8 {[%clk 0:02:44]} 15. Qd2 {[%clk 0:03:00]}  Rb8 {[%clk 0:02:44]} 16. Rfd1 {[%clk 0:02:51]}  b3 {[%clk 0:02:32]} 17. c4 {[%clk 0:02:50]}  Bg7 {[%clk 0:02:24]} 18. d5 {[%clk 0:02:48]}  cxd5 {[%clk 0:02:23]} 19. cxd5 {[%clk 0:02:49]}  Bf5 {[%clk 0:02:24]} 20. g4 {[%clk 0:02:50]}  Bc2 {[%clk 0:02:24]} 21. Re1 {[%clk 0:02:41]}  Bxb2 {[%clk 0:02:22]} 22. Bxa7 {[%clk 0:02:40]}  Bxa1 {[%clk 0:02:18]} 23. Rxa1 {[%clk 0:02:28]}  b2 {[%clk 0:02:18]} 24. Bd4 {[%clk 0:02:28]}  b1=Q+ {[%clk 0:02:16]} 25. Rxb1 {[%clk 0:02:28]}  Rxb1+ {[%clk 0:02:17]} 26. Kg2 {[%clk 0:02:27]}  Be4 {[%clk 0:02:17]} 27. Qh6 {[%clk 0:02:23]}  Nf6 {[%clk 0:02:14]} 28. g5 {[%clk 0:02:18]}  Nh5 {[%clk 0:02:14]} 0-1


[Site "https://www.chess.com"]

[Event "Titled Tuesday Blitz March 22 Late 2022"]
[White "Dolzhykova, Kateryna"]
[Black "Barp, Alberto"]
[WhiteFideId "14113414"]
[BlackFideId "872555"]
[WhiteElo "2184"]
[BlackElo "2229"]
[Result "0-1"]
[Round "08"]
[TimeControl "180+1"]
[Date "2022.03.22"]
[WhiteClock "0:00:02"]
[BlackClock "0:00:12"]

1. e4 {[%clk 0:03:00]}  c6 {[%clk 0:02:55]} 2. Ne2 {[%clk 0:03:00]}  d5 {[%clk 0:02:56]} 3. e5 {[%clk 0:03:00]}  c5 {[%clk 0:02:56]} 4. d4 {[%clk 0:02:59]}  Nc6 {[%clk 0:02:53]} 5. dxc5 {[%clk 0:02:58]}  e6 {[%clk 0:02:51]} 6. Nd4 {[%clk 0:02:53]}  Bxc5 {[%clk 0:02:48]} 7. Nxc6 {[%clk 0:02:52]}  bxc6 {[%clk 0:02:49]} 8. Bd3 {[%clk 0:02:52]}  Qh4 {[%clk 0:02:44]} 9. O-O {[%clk 0:02:47]}  Ne7 {[%clk 0:02:44]} 10. Nd2 {[%clk 0:02:42]}  Ng6 {[%clk 0:02:42]} 11. Nf3 {[%clk 0:02:42]}  Qh5 {[%clk 0:02:42]} 12. c3 {[%clk 0:02:33]}  Nxe5 {[%clk 0:02:34]} 13. Nxe5 {[%clk 0:02:34]}  Qxe5 {[%clk 0:02:34]} 14. b4 {[%clk 0:02:34]}  Bd6 {[%clk 0:02:33]} 15. f4 {[%clk 0:02:31]}  Qf6 {[%clk 0:02:19]} 16. Bd2 {[%clk 0:02:26]}  O-O {[%clk 0:02:19]} 17. Rc1 {[%clk 0:02:19]}  c5 {[%clk 0:02:17]} 18. Kh1 {[%clk 0:01:54]}  Bb7 {[%clk 0:02:16]} 19. Qh5 {[%clk 0:01:23]}  g6 {[%clk 0:02:14]} 20. Qh3 {[%clk 0:01:16]}  Rfd8 {[%clk 0:02:05]} 21. Be3 {[%clk 0:01:10]}  d4 {[%clk 0:01:51]} 22. cxd4 {[%clk 0:01:09]}  cxb4 {[%clk 0:01:34]} 23. Bf2 {[%clk 0:01:00]}  Rdc8 {[%clk 0:01:33]} 24. Rcd1 {[%clk 0:00:55]}  Qg7 {[%clk 0:01:24]} 25. Qe3 {[%clk 0:00:36]}  Bd5 {[%clk 0:01:22]} 26. Be4 {[%clk 0:00:35]}  Rc3 {[%clk 0:01:20]} 27. Qe2 {[%clk 0:00:35]}  Qf6 {[%clk 0:01:11]} 28. Bxd5 {[%clk 0:00:34]}  exd5 {[%clk 0:01:12]} 29. Be1 {[%clk 0:00:32]}  Rc4 {[%clk 0:01:11]} 30. Qe3 {[%clk 0:00:19]}  Qf5 {[%clk 0:01:09]} 31. Bg3 {[%clk 0:00:12]}  a5 {[%clk 0:01:08]} 32. Rf2 {[%clk 0:00:03]}  a4 {[%clk 0:01:07]} 33. h3 {[%clk 0:00:03]}  Rb8 {[%clk 0:01:01]} 34. Qd3 {[%clk 0:00:03]}  Qxd3 {[%clk 0:00:59]} 35. Rxd3 {[%clk 0:00:04]}  h5 {[%clk 0:00:35]} 36. Kh2 {[%clk 0:00:04]}  Be7 {[%clk 0:00:26]} 37. h4 {[%clk 0:00:03]}  Bf6 {[%clk 0:00:26]} 38. Rfd2 {[%clk 0:00:03]}  b3 {[%clk 0:00:25]} 39. axb3 {[%clk 0:00:03]}  Rxb3 {[%clk 0:00:23]} 40. Rxb3 {[%clk 0:00:03]}  axb3 {[%clk 0:00:23]} 41. Rb2 {[%clk 0:00:03]}  Rc3 {[%clk 0:00:18]} 42. Bf2 {[%clk 0:00:03]}  Rd3 {[%clk 0:00:17]} 43. g3 {[%clk 0:00:03]}  Kf8 {[%clk 0:00:16]} 44. Kg2 {[%clk 0:00:03]}  Ke8 {[%clk 0:00:16]} 45. Kf1 {[%clk 0:00:03]}  Rf3 {[%clk 0:00:12]} 46. Ke2 {[%clk 0:00:03]}  Rxf2+ {[%clk 0:00:12]} 47. Kxf2 {[%clk 0:00:02]}  Bxd4+ {[%clk 0:00:12]} 0-1


[Site "https://www.chess.com"]